fUST/lending_fUST_20241229
["ID","MTS","AMOUNT","RATE_DAILY","PERIOD"]
[346984282,1735451432606,-500.0,9.298e-05,2]
[346984285,1735451432617,-500.0,9.298e-05,2]
[346984286,1735451432626,-194.5594765,9.298e-05,2]
[346984310,1735451438099,-305.4405235,9.298e-05,2]
[346984311,1735451438108,-273.16240629,9.298e-05,2]
[346984312,1735451438118,-500.0,9.298e-05,2]
[346984313,1735451438127,-500.0,9.298e-05,2]
[346984314,1735451438138,-500.0,9.298e-05,2]
[346984315,1735451438147,-500.0,9.298e-05,2]
[346984316,1735451438158,-504.043751,9.298e-05,2]
[346984317,1735451438167,-500.0,9.298e-05,2]
[346984318,1735451438177,-500.0,9.298e-05,2]
[346984319,1735451438187,-500.0,9.298e-05,2]
[346984320,1735451438196,-500.0,9.298e-05,2]
[346984321,1735451438207,-500.0,9.298e-05,2]
[346984322,1735451438217,-500.0,9.298e-05,2]
[346984323,1735451438226,-220.24484754,9.298e-05,2]
[346984324,1735451438235,-500.0,9.298e-05,2]
[346984325,1735451438245,-500.0,9.298e-05,2]
[346984326,1735451438254,-500.0,9.298e-05,2]
[346984327,1735451438263,-500.0,9.298e-05,2]
[346984328,1735451438272,-82.40987452,9.299e-05,2]
[346984329,1735451438282,-500.0,9.299e-05,2]
[346984330,1735451438291,-500.0,9.299e-05,2]
[346984331,1735451438300,-500.0,9.299e-05,2]
[346984332,1735451438396,-500.0,9.299e-05,2]
[346984333,1735451438406,-500.0,9.299e-05,2]
[346984334,1735451438415,-500.0,9.299e-05,2]
[346984335,1735451438425,-500.0,9.299e-05,2]
[346984336,1735451438434,-500.0,9.299e-05,2]
[346984337,1735451438443,-500.0,9.299e-05,2]
[346984338,1735451438452,-500.0,9.299e-05,2]
[346984339,1735451438462,-500.0,9.299e-05,2]
[346984340,1735451438471,-168.0,9.299e-05,2]
[346984341,1735451438480,-225.87835179,9.299e-05,2]
[346984342,1735451438489,-393.37843425,9.299e-05,2]
[346984343,1735451438498,-500.0,9.299e-05,2]
[346984344,1735451438507,-505.00623666,9.299e-05,2]
[346984345,1735451438517,-500.0,9.299e-05,2]
[346984346,1735451438527,-500.0,9.299e-05,2]
[346984347,1735451438536,-505.05879928,9.299e-05,2]
[346984348,1735451438545,-500.0,9.299e-05,2]
[346984349,1735451438554,-500.0,9.299e-05,2]
[346984350,1735451438563,-500.0,9.299e-05,2]
[346984351,1735451438573,-500.0,9.299e-05,2]
[346984352,1735451438582,-500.0,9.299e-05,2]
[346984353,1735451438592,-538.89,9.299e-05,2]
[346984354,1735451438601,-500.0,9.299e-05,2]
[346984355,1735451438610,-500.0,9.299e-05,2]
[346984356,1735451438619,-500.0,9.299e-05,2]
[346984357,1735451438628,-500.0,9.299e-05,2]
[346984358,1735451438637,-500.0,9.299e-05,2]
[346984359,1735451438647,-500.0,9.299e-05,2]
[346984360,1735451438656,-500.0,9.299e-05,2]
[346984361,1735451438665,-500.0,9.299e-05,2]
[346984362,1735451438674,-500.0,9.299e-05,2]
[346984363,1735451438683,-500.0,9.299e-05,2]
[346984364,1735451438692,-500.0,9.299e-05,2]
[346984365,1735451438701,-500.0,9.299e-05,2]
[346984366,1735451438710,-500.0,9.299e-05,2]
[346984367,1735451438720,-500.0,9.299e-05,2]
[346984368,1735451438728,-500.0,9.299e-05,2]
[346984369,1735451438738,-500.0,9.299e-05,2]
[346984370,1735451438747,-500.0,9.299e-05,2]
[346984371,1735451438756,-500.0,9.299e-05,2]
[346984372,1735451438765,-500.0,9.299e-05,2]
[346984373,1735451438774,-500.0,9.299e-05,2]
[346984374,1735451438783,-524.91,9.299e-05,2]
[346984375,1735451438792,-500.0,9.299e-05,2]
[346984376,1735451438802,-500.0,9.299e-05,2]
[346984377,1735451438811,-500.0,9.299e-05,2]
[346984378,1735451438820,-500.0,9.299e-05,2]
[346984379,1735451438829,-691.29,9.299e-05,2]
[346984380,1735451438840,-500.0,9.299e-05,2]
[346984381,1735451438849,-500.0,9.299e-05,2]
[346984382,1735451438859,-500.0,9.299e-05,2]
[346984383,1735451438868,-504.46116414,9.299e-05,2]
[346984384,1735451438878,-500.0,9.299e-05,2]
[346984385,1735451438889,-500.0,9.299e-05,2]
[346984386,1735451438898,-500.0,9.299e-05,2]
[346984387,1735451438907,-500.0,9.299e-05,2]
[346984388,1735451438916,-500.0,9.299e-05,2]
[346984389,1735451438926,-500.0,9.299e-05,2]
[346984390,1735451438935,-500.0,9.299e-05,2]
[346984391,1735451438944,-500.0,9.299e-05,2]
[346984392,1735451438953,-6456.8,9.299e-05,2]
[346984393,1735451438962,-500.0,9.299e-05,2]
[346984394,1735451438975,-500.0,9.299e-05,2]
[346984395,1735451438984,-500.0,9.299e-05,2]
[346984396,1735451438994,-500.0,9.299e-05,2]
[346984397,1735451439003,-500.0,9.299e-05,2]
[346984398,1735451439014,-500.0,9.299e-05,2]
[346984399,1735451439024,-500.0,9.299e-05,2]
[346984400,1735451439033,-500.0,9.299e-05,2]
[346984401,1735451439043,-500.0,9.299e-05,2]
[346984402,1735451439053,-500.0,9.299e-05,2]
[346984403,1735451439063,-500.0,9.299e-05,2]
[346984404,1735451439072,-500.0,9.299e-05,2]
[346984405,1735451439083,-500.0,9.299e-05,2]
[346984406,1735451439092,-500.0,9.299e-05,2]
[346984407,1735451439102,-500.0,9.299e-05,2]
[346984408,1735451439111,-500.0,9.299e-05,2]
[346984409,1735451439121,-500.0,9.299e-05,2]
[346984410,1735451439130,-500.0,9.3e-05,2]
[346984411,1735451439140,-500.0,9.3e-05,2]
[346984412,1735451439150,-500.0,9.3e-05,2]
[346984413,1735451439160,-500.0,9.3e-05,2]
[346984414,1735451439169,-500.0,9.3e-05,2]
[346984415,1735451439180,-598.53094804,9.3e-05,2]
[346984416,1735451439189,-500.0,9.3e-05,2]
[346984417,1735451439199,-528.44917059,9.3e-05,2]
[346984418,1735451439208,-500.0,9.3e-05,2]
[346984419,1735451439218,-503.47198621,9.3e-05,2]
[346984420,1735451439229,-502.97333494,9.3e-05,2]
[346984421,1735451439238,-500.0,9.3e-05,2]
[346984422,1735451439247,-633.81800468,9.3e-05,2]
[346984423,1735451439257,-500.0,9.3e-05,2]
[346984424,1735451439268,-503.39948042,9.3e-05,2]
[346984425,1735451439277,-508.80629684,9.3e-05,2]
[346984426,1735451439287,-500.0,9.3e-05,2]
[346984427,1735451439298,-500.0,9.3e-05,2]
[346984428,1735451439308,-500.0,9.3e-05,2]
[346984429,1735451439318,-500.0,9.3e-05,2]
[346984430,1735451439329,-500.0,9.3e-05,2]
[346984431,1735451439340,-500.0,9.3e-05,2]
[346984432,1735451439349,-307.26674055,9.3e-05,2]
[346984433,1735451439358,-500.0,9.3e-05,2]
[346984434,1735451439368,-500.0,9.3e-05,2]
[346984435,1735451439378,-151.25270604,9.3e-05,2]
[346984436,1735451439388,-500.0,9.3e-05,2]
[346984437,1735451439400,-577.9439874,9.3e-05,2]
[346984438,1735451439409,-500.0,9.3e-05,2]
[346984439,1735451439420,-500.0,9.3e-05,2]
[346984440,1735451439430,-377.85298173,9.3e-05,2]
[346984441,1735451439440,-500.0,9.3e-05,2]
[346984442,1735451439449,-503.8261317,9.3e-05,2]
[346984443,1735451439458,-500.0,9.3e-05,2]
[346984444,1735451439472,-500.0,9.3e-05,2]
[346984445,1735451439485,-502.3234434,9.3e-05,2]
[346984446,1735451439497,-500.0,9.3e-05,2]
[346984447,1735451439509,-500.0,9.3e-05,2]
[346984448,1735451439522,-500.0,9.3e-05,2]
[346984449,1735451439533,-500.0,9.3e-05,2]
[346984450,1735451439546,-500.0,9.3e-05,2]
[346984451,1735451439557,-500.0,9.3e-05,2]
[346984452,1735451439568,-500.0,9.3e-05,2]
[346984453,1735451439582,-500.0,9.3e-05,2]
[346984454,1735451439593,-500.0,9.3e-05,2]
[346984455,1735451439604,-507.28905441,9.3e-05,2]
[346984456,1735451439615,-500.0,9.3e-05,2]
[346984457,1735451439627,-583.06125413,9.3e-05,2]
[346984458,1735451439638,-500.0,9.3e-05,2]
[346984459,1735451439652,-500.0,9.3e-05,2]
[346984460,1735451439663,-500.0,9.3e-05,2]
[346984461,1735451439675,-500.0,9.3e-05,2]
[346984462,1735451439687,-532.22512531,9.3e-05,2]
[346984463,1735451439698,-500.0,9.3e-05,2]
[346984464,1735451439712,-501.56831627,9.3e-05,2]
[346984465,1735451439722,-500.0,9.3e-05,2]
[346984466,1735451439733,-500.0,9.3e-05,2]
[346984467,1735451439744,-500.0,9.3e-05,2]
[346984469,1735451439755,-500.0,9.3e-05,2]
[346984471,1735451439766,-500.0,9.3e-05,2]
[346984472,1735451439776,-500.0,9.3e-05,2]
[346984474,1735451439787,-500.0,9.3e-05,2]
[346984475,1735451439798,-500.0,9.3e-05,2]
[346984476,1735451439809,-500.0,9.3e-05,2]
[346984477,1735451439821,-500.0,9.3e-05,2]
[346984478,1735451439832,-607.18424753,9.3e-05,2]
[346984479,1735451439843,-500.0,9.3e-05,2]
[346984480,1735451439854,-500.0,9.3e-05,2]
[346984481,1735451439863,-253.21643426,9.3e-05,2]
[346984482,1735451439874,-506.83504329,9.3e-05,2]
[346984483,1735451439883,-500.0,9.3e-05,2]
[346984484,1735451439894,-500.0,9.3e-05,2]
[346984485,1735451439906,-634.91974947,9.3e-05,2]
[346984486,1735451439915,-500.0,9.3e-05,2]
[346984487,1735451439927,-500.0,9.3e-05,2]
[346984488,1735451439938,-500.0,9.3e-05,2]
[346984489,1735451439950,-500.0,9.3e-05,2]
[346984490,1735451439961,-500.0,9.3e-05,2]
[346984491,1735451439976,-500.0,9.3e-05,2]
[346984492,1735451439986,-500.0,9.3e-05,2]
[346984493,1735451439997,-168.53422188,9.3e-05,2]
[346984494,1735451440008,-500.0,9.3e-05,2]
[346984495,1735451440020,-500.0,9.3e-05,2]
[346984496,1735451440032,-500.0,9.3e-05,2]
[346984497,1735451440043,-500.0,9.3e-05,2]
[346984498,1735451440054,-500.0,9.3e-05,2]
[346984499,1735451440066,-385.55894362,9.3e-05,2]
[346984500,1735451440076,-434.17157866,9.3e-05,2]
[346984501,1735451440086,-501.43503099,9.3e-05,2]
[346984502,1735451440096,-500.0,9.3e-05,2]
[346984503,1735451440106,-501.27588559,9.3e-05,2]
[346984504,1735451440117,-488.49441371,9.3e-05,2]
[346984506,1735451440127,-502.53981194,9.3e-05,2]
[346984507,1735451440138,-500.0,9.3e-05,2]
[346984508,1735451440148,-506.41697892,9.3e-05,2]
[346984509,1735451440160,-500.0,9.3e-05,2]
[346984510,1735451440172,-500.0,9.3e-05,2]
[346984511,1735451440184,-500.0,9.3e-05,2]
[346984512,1735451440197,-500.0,9.3e-05,2]
[346984513,1735451440208,-500.0,9.3e-05,2]
[346984514,1735451440218,-476.52116996,9.3e-05,2]
[346984515,1735451440228,-500.0,9.3e-05,2]
[346984516,1735451440239,-500.0,9.3e-05,2]
[346984517,1735451440251,-500.0,9.3e-05,2]
[346984518,1735451440262,-500.0,9.3e-05,2]
[346984519,1735451440273,-587.76210932,9.3e-05,2]
[346984520,1735451440285,-501.69695468,9.3e-05,2]
[346984521,1735451440296,-500.0,9.3e-05,2]
[346984522,1735451440306,-500.0,9.3e-05,2]
[346984523,1735451440316,-500.0,9.3e-05,2]
[346984524,1735451440327,-500.0,9.3e-05,2]
[346984525,1735451440336,-500.0,9.3e-05,2]
[346984526,1735451440347,-502.53447067,9.3e-05,2]
[346984527,1735451440357,-506.33120208,9.3e-05,2]
[346984528,1735451440367,-500.0,9.3e-05,2]
[346984529,1735451440380,-500.0,9.3e-05,2]
[346984530,1735451440391,-506.00330098,9.3e-05,2]
[346984531,1735451440403,-501.2120184,9.3e-05,2]
[346984532,1735451440414,-501.06138964,9.3e-05,2]
[346984533,1735451440424,-500.0,9.3e-05,2]
[346984534,1735451440435,-500.0,9.3e-05,2]
[346984535,1735451440445,-500.0,9.3e-05,2]
[346984536,1735451440455,-500.0,9.3e-05,2]
[346984537,1735451440465,-500.0,9.3e-05,2]
[346984538,1735451440476,-500.0,9.3e-05,2]
[346984539,1735451440486,-500.0,9.3e-05,2]
[346984540,1735451440496,-500.0,9.3e-05,2]
[346984541,1735451440507,-501.80677034,9.3e-05,2]
[346984542,1735451440517,-500.0,9.3e-05,2]
[346984543,1735451440527,-500.0,9.3e-05,2]
[346984544,1735451440537,-353.015959,9.3e-05,2]
[346984545,1735451440548,-1187.2581346,9.3e-05,2]
[346984546,1735451440558,-500.0,9.3e-05,2]
[346984547,1735451440569,-500.0,9.3e-05,2]
[346984548,1735451440579,-500.0,9.3e-05,2]
[346984549,1735451440590,-500.0,9.3e-05,2]
[346984550,1735451440600,-500.0,9.3e-05,2]
[346984551,1735451440610,-534.06,9.3e-05,2]
[346984552,1735451440621,-525.66,9.3e-05,2]
[346984553,1735451440631,-500.0,9.3e-05,2]
[346984554,1735451440641,-502.64934432,9.301e-05,2]
[346984555,1735451440651,-500.0,9.301e-05,2]
[346984556,1735451440661,-500.0,9.301e-05,2]
[346984557,1735451440672,-500.0,9.301e-05,2]
[346984558,1735451440682,-500.0,9.301e-05,2]
[346984559,1735451440800,-500.0,9.301e-05,2]
[346984560,1735451440809,-500.0,9.301e-05,2]
[346984561,1735451440818,-500.0,9.301e-05,2]
[346984562,1735451440827,-500.0,9.301e-05,2]
[346984563,1735451440838,-883.36,9.301e-05,2]
[346984564,1735451440847,-500.0,9.301e-05,2]
[346984565,1735451440856,-492.88967352,9.302e-05,2]
[346984566,1735451440865,-500.0,9.302e-05,2]
[346984567,1735451440875,-500.0,9.572e-05,2]
[346984568,1735451440884,-500.0,9.572e-05,2]
[346984569,1735451440894,-500.0,9.572e-05,2]
[346984570,1735451440903,-500.0,9.572e-05,2]
[346984571,1735451440913,-345.40602296,9.572e-05,2]
[346984572,1735451440923,-500.0,9.572e-05,2]
[346984573,1735451440933,-593.02187688,9.572e-05,2]
[346984574,1735451440943,-500.0,9.572e-05,2]
[346984575,1735451440953,-508.2010263,9.572e-05,2]
[346984576,1735451440964,-500.0,9.572e-05,2]
[346984577,1735451440981,-490.58179665,9.572e-05,2]
[346984578,1735451440990,-500.0,9.572e-05,2]
[346984579,1735451440999,-503.86829391,9.572e-05,2]
[346984580,1735451441009,-500.0,9.572e-05,2]
[346984581,1735451441019,-348.85707521,9.572e-05,2]
[346984582,1735451441030,-500.0,9.572e-05,2]
[346984583,1735451441039,-500.0,9.572e-05,2]
[346984584,1735451441048,-500.0,9.572e-05,2]
[346984585,1735451441057,-500.0,9.572e-05,2]
[346984586,1735451441067,-502.08824874,9.572e-05,2]
[346984587,1735451441077,-500.0,9.572e-05,2]
[346984588,1735451441086,-500.0,9.572e-05,2]
[346984589,1735451441096,-500.0,9.572e-05,2]
[346984590,1735451441106,-500.0,9.572e-05,2]
[346984591,1735451441115,-500.0,9.572e-05,2]
[346984592,1735451441125,-500.0,9.572e-05,2]
[346984593,1735451441134,-500.0,9.572e-05,2]
[346984594,1735451441145,-500.0,9.573e-05,2]
[346984595,1735451441154,-573.41,9.573e-05,2]
[346984596,1735451441163,-500.0,9.573e-05,2]
[346984597,1735451441173,-442.48412801,9.573e-05,2]
[346984598,1735451441182,-500.0,9.573e-05,2]
[346984599,1735451441191,-500.0,9.573e-05,2]
[346984600,1735451441201,-500.0,9.573e-05,2]
[346984601,1735451441210,-313.8,9.573e-05,2]
[346984602,1735451441220,-500.0,9.573e-05,2]
[346984603,1735451441230,-239.0,9.573e-05,2]
[346984604,1735451441239,-691.29,9.573e-05,2]
[346984605,1735451441248,-152.82,9.573e-05,2]
[346984606,1735451441258,-500.0,9.573e-05,2]
[346984607,1735451441267,-500.0,9.573e-05,2]
[346984608,1735451441276,-500.0,9.573e-05,2]
[346984609,1735451441286,-500.0,9.573e-05,2]
[346984610,1735451441295,-6456.8,9.573e-05,2]
[346984611,1735451441304,-500.0,9.573e-05,2]
[346984612,1735451441314,-500.0,9.573e-05,2]
[346984613,1735451441323,-500.0,9.573e-05,2]
[346984614,1735451441332,-637.37708059,9.573e-05,2]
[346984615,1735451441342,-500.0,9.573e-05,2]
[346984616,1735451441351,-284.97,9.573e-05,2]
[346984617,1735451441360,-500.0,9.573e-05,2]
[346984618,1735451441370,-500.0,9.573e-05,2]
[346984619,1735451441381,-500.0,9.573e-05,2]
[346984620,1735451441390,-500.0,9.573e-05,2]
[346984621,1735451441399,-500.0,9.573e-05,2]
[346984622,1735451441409,-500.0,9.574e-05,2]
[346984623,1735451441418,-500.0,9.574e-05,2]
[346984624,1735451441428,-500.0,9.574e-05,2]
[346984625,1735451441437,-500.0,9.574e-05,2]
[346984626,1735451441447,-500.0,9.574e-05,2]
[346984627,1735451441456,-500.0,9.574e-05,2]
[346984628,1735451441466,-500.0,9.574e-05,2]
[346984629,1735451441475,-500.0,9.574e-05,2]
[346984630,1735451441485,-500.0,9.574e-05,2]
[346984631,1735451441494,-500.0,9.575e-05,2]
[346984632,1735451441503,-500.0,9.575e-05,2]
[346984633,1735451441513,-883.36,9.575e-05,2]
[346984634,1735451441522,-500.0,9.575e-05,2]
[346984635,1735451441531,-453.5,9.576e-05,2]
[346984636,1735451441540,-500.0,9.846e-05,2]
[346984637,1735451441550,-301.83,9.846e-05,2]
[346984638,1735451441560,-500.0,9.846e-05,2]
[346984639,1735451441569,-166.94,9.846e-05,2]
[346984640,1735451441578,-500.0,9.847e-05,2]
[346984641,1735451441588,-500.0,9.847e-05,2]
[346984642,1735451441598,-500.0,9.847e-05,2]
[346984643,1735451441607,-500.0,9.847e-05,2]
[346984644,1735451441616,-319.14,9.847e-05,2]
[346984645,1735451441626,-691.29,9.847e-05,2]
[346984646,1735451441635,-6456.8,9.847e-05,2]
[346984647,1735451441645,-500.0,9.847e-05,2]
[346984648,1735451441654,-500.0,9.847e-05,2]
[346984649,1735451441664,-364.31,9.847e-05,2]
[346984650,1735451441673,-500.0,9.847e-05,2]
[346984651,1735451441682,-500.0,9.847e-05,2]
[346984652,1735451441691,-500.0,9.848e-05,2]
[346984653,1735451441701,-500.0,9.848e-05,2]
[346984654,1735451441710,-500.0,9.848e-05,2]
[346984655,1735451441719,-500.0,9.848e-05,2]
[346984656,1735451441728,-500.0,9.848e-05,2]
[346984657,1735451441738,-505.08678835,9.848e-05,2]
[346984658,1735451441747,-500.0,9.848e-05,2]
[346984659,1735451441756,-500.0,9.848e-05,2]
[346984660,1735451441766,-500.0,9.849e-05,2]
[346984661,1735451441775,-500.0,9.849e-05,2]
[346984662,1735451441784,-883.36,9.849e-05,2]
[346984663,1735451441793,-500.0,9.849e-05,2]
[346984664,1735451441803,-374.46716767,9.849e-05,2]
[346984665,1735451441812,-500.0,9.999e-05,2]
[346984666,1735451441822,-48.50230557,9.999e-05,2]
[346984667,1735451442300,-500.0,9.572e-05,2]
[346984668,1735451442310,-451.49769443,9.999e-05,2]
[346984669,1735451442320,-500.0,9.999e-05,2]
[346984670,1735451442329,-500.0,9.999e-05,2]
[346984671,1735451442338,-351.26168798,9.999e-05,2]
[346984672,1735451442347,-500.0,9.999e-05,2]
[346984673,1735451442357,-500.0,9.999e-05,2]
[346984674,1735451442367,-500.0,9.999e-05,2]
[346984675,1735451442376,-500.0,9.999e-05,2]
[346984676,1735451442386,-500.0,9.999e-05,2]
[346984677,1735451442395,-500.0,9.999e-05,2]
[346984678,1735451442404,-919.27,9.999e-05,2]
[346984679,1735451442413,-50364.00917286,0.0001,2]
[346984683,1735451443316,-193.5621298,9.207e-05,2]
[346984684,1735451443327,-752.62973094,0.0001,2]
[346984685,1735451443340,-281.66505411,0.0001,2]
[346984699,1735451745503,24900.0,8.574e-05,2]
[346984704,1735451937552,3494.98029342,9.013e-05,2]
[346984705,1735451952843,364.30970658,9.013e-05,2]
[346984706,1735452128841,3494.98029342,9.013e-05,2]
[346984709,1735452194536,154.02112611,9.013e-05,2]
[346984711,1735452342134,-3107.39171542,9.104e-05,2]
[346984712,1735452345101,-387.588578,9.104e-05,2]
[346984713,1735452345122,-300.0,9.295e-05,2]
[346984714,1735452345144,-442.06244297,9.296e-05,2]
[346984715,1735452345167,-239.03901807,9.296e-05,2]
[346984716,1735452345188,-500.0,9.296e-05,2]
[346984717,1735452345210,-500.0,9.296e-05,2]
[346984718,1735452345233,-500.0,9.296e-05,2]
[346984719,1735452345255,-12.8287982,9.296e-05,2]
[346984720,1735452436103,-300.0,9.295e-05,2]
[346984721,1735452436126,-487.1712018,9.296e-05,2]
[346984722,1735452436148,-239.05958615,9.296e-05,2]
[346984723,1735452438140,-252.12090604,9.296e-05,2]
[346984724,1735452438162,-500.0,9.296e-05,2]
[346984725,1735452438184,-321.9708625,9.296e-05,2]
[346984726,1735452438205,-500.0,9.296e-05,2]
[346984727,1735452438227,-501.53020643,9.296e-05,2]
[346984728,1735452438250,-500.0,9.296e-05,2]
[346984729,1735452438274,-500.0,9.296e-05,2]
[346984730,1735452438295,-500.0,9.296e-05,2]
[346984731,1735452438318,-500.0,9.296e-05,2]
[346984732,1735452438339,-589.35,9.296e-05,2]
[346984733,1735452438381,-53.09341864,9.296e-05,2]
[346984734,1735452441105,-446.90658136,9.296e-05,2]
[346984735,1735452441133,-500.0,9.297e-05,2]
[346984736,1735452441160,-500.0,9.297e-05,2]
[346984737,1735452441188,-149.93070455,9.297e-05,2]
[346984738,1735452449103,-125.43419943,9.297e-05,2]
[346984739,1735452449127,-556.34306284,9.297e-05,2]
[346984740,1735452449305,-507.00258007,9.297e-05,2]
[346985315,1735452638364,-300.0,9.295e-05,2]
[346985317,1735452638374,-500.0,9.296e-05,2]
[346985319,1735452638383,-736.97,9.296e-05,2]
[346985321,1735452638392,-548.7495245,9.296e-05,2]
[346985488,1735452644079,-32.5804755,9.296e-05,2]
[346985489,1735452644089,-500.0,9.296e-05,2]
[346985490,1735452644098,-500.0,9.296e-05,2]
[346985491,1735452644107,-500.0,9.296e-05,2]
[346985492,1735452644116,-500.0,9.296e-05,2]
[346985493,1735452644125,-500.0,9.296e-05,2]
[346985494,1735452644137,-500.0,9.296e-05,2]
[346985495,1735452644146,-500.0,9.296e-05,2]
[346985496,1735452644157,-500.0,9.296e-05,2]
[346985497,1735452644167,-500.0,9.296e-05,2]
[346985498,1735452644177,-500.0,9.296e-05,2]
[346985499,1735452644186,-79.12741993,9.297e-05,2]
[346985500,1735452644195,-500.0,9.297e-05,2]
[346985501,1735452644204,-500.0,9.297e-05,2]
[346985502,1735452644214,-500.77130577,9.297e-05,2]
[346985503,1735452644223,-500.0,9.297e-05,2]
[346985504,1735452644233,-501.00476758,9.297e-05,2]
[346985507,1735452644242,-500.59643341,9.297e-05,2]
[346985509,1735452644251,-500.0,9.297e-05,2]
[346985511,1735452644260,-500.8412705,9.297e-05,2]
[346985513,1735452644269,-500.0,9.297e-05,2]
[346985514,1735452644278,-500.0,9.297e-05,2]
[346985515,1735452644287,-500.59182723,9.297e-05,2]
[346985516,1735452644296,-501.5617095,9.297e-05,2]
[346985517,1735452644306,-500.0,9.297e-05,2]
[346985518,1735452644315,-500.0,9.297e-05,2]
[346985519,1735452644324,-269.29954359,9.297e-05,2]
[346985520,1735452644333,-500.0,9.297e-05,2]
[346985521,1735452644343,-500.0,9.297e-05,2]
[346985522,1735452644352,-438.66498595,9.297e-05,2]
[346985523,1735452644362,-500.0,9.297e-05,2]
[346985524,1735452644371,-198.16147645,9.297e-05,2]
[346985525,1735452644380,-560.31960005,9.297e-05,2]
[346985526,1735452644389,-500.0,9.297e-05,2]
[346985527,1735452644399,-500.0,9.297e-05,2]
[346985528,1735452644408,-515.7,9.297e-05,2]
[346985529,1735452644417,-500.0,9.297e-05,2]
[346985530,1735452644427,-500.0,9.297e-05,2]
[346985531,1735452644436,-256.31225777,9.297e-05,2]
[346985532,1735452644447,-500.0,9.297e-05,2]
[346985533,1735452644459,-500.0,9.297e-05,2]
[346985534,1735452644470,-458.62902157,9.297e-05,2]
[346985535,1735452644480,-220.5597071,9.297e-05,2]
[346985536,1735452644490,-500.0,9.297e-05,2]
[346985537,1735452644501,-500.0,9.297e-05,2]
[346985538,1735452644513,-500.0,9.297e-05,2]
[346985539,1735452644523,-544.42440504,9.297e-05,2]
[346985540,1735452644532,-500.0,9.297e-05,2]
[346985541,1735452644542,-500.0,9.297e-05,2]
[346985542,1735452644551,-500.0,9.297e-05,2]
[346985543,1735452644561,-516.43,9.297e-05,2]
[346985544,1735452644570,-503.6905916,9.297e-05,2]
[346985545,1735452644579,-500.0,9.297e-05,2]
[346985546,1735452644589,-500.0,9.297e-05,2]
[346985547,1735452644599,-500.0,9.297e-05,2]
[346985548,1735452644609,-500.0,9.297e-05,2]
[346985549,1735452644620,-500.0,9.297e-05,2]
[346985550,1735452644629,-500.0,9.297e-05,2]
[346985551,1735452644638,-109.80093909,9.297e-05,2]
[346985552,1735452644650,-390.19906091,9.297e-05,2]
[346985553,1735452644660,-500.0,9.297e-05,2]
[346985554,1735452644669,-500.0,9.297e-05,2]
[346985555,1735452644679,-506.88,9.297e-05,2]
[346985556,1735452644689,-500.0,9.297e-05,2]
[346985557,1735452644698,-500.0,9.297e-05,2]
[346985558,1735452644707,-500.0,9.297e-05,2]
[346985559,1735452644716,-500.0,9.297e-05,2]
[346985560,1735452644725,-500.0,9.297e-05,2]
[346985561,1735452644734,-500.0,9.297e-05,2]
[346985562,1735452644743,-500.0,9.297e-05,2]
[346985563,1735452644752,-500.0,9.297e-05,2]
[346985564,1735452644762,-500.0,9.297e-05,2]
[346985565,1735452644771,-500.0,9.297e-05,2]
[346985566,1735452644780,-500.0,9.297e-05,2]
[346985567,1735452644789,-500.0,9.297e-05,2]
[346985568,1735452644798,-500.0,9.297e-05,2]
[346985569,1735452644808,-500.0,9.297e-05,2]
[346985570,1735452644817,-500.0,9.297e-05,2]
[346985571,1735452644827,-500.0,9.297e-05,2]
[346985572,1735452644836,-503.04,9.297e-05,2]
[346985573,1735452644845,-500.0,9.297e-05,2]
[346985574,1735452644854,-500.0,9.297e-05,2]
[346985575,1735452644863,-500.0,9.297e-05,2]
[346985576,1735452644872,-625.62,9.297e-05,2]
[346985577,1735452644881,-150.98298675,9.297e-05,2]
[346985578,1735452644891,-500.0,9.297e-05,2]
[346985579,1735452644900,-306.93225323,9.297e-05,2]
[346985580,1735452644909,-500.0,9.297e-05,2]
[346985581,1735452644919,-500.0,9.297e-05,2]